Workbook

Sheet 汇总表
A1: 大冶市2025年度国家级、省级生态公益林补偿资金兑现汇总表
A2: 单位：大冶市自然资源和规划局
A3: 乡镇 | B3: 金额合计 | C3: 国家级 | F3: 省级 | I3: 备注
C4: 面积（亩） | D4: 兑现标准 （元/亩） | E4: 金额 （元） | F4: 面积（亩） | G4: 兑现标准 （元/亩） | H4: 金额 （元）
A5: 保安镇 | B5: =E5+H5 -> 50331.26 | C5: 3037.61 | D5: 16 | E5: =C5*D5 -> 48601.76 | F5: 115.3 | G5: 15 | H5: =F5*G5 -> 1729.5 | I5: 说明：1、中央资金（第一批）鄂财环发[2024]75号支出国家级公益林补偿资金2153442.88元，鄂财环发[2024]87号国有支出15876.87元，鄂财环发[2024]87号节余4123.13元，鄂财环发[2024]75号节余16557.12元，合计20680.25元。 2、省级资金鄂财环发[2024]87号支出省级公益林补偿资金2940680.25元，节余49319.75元。 3、国家级和省级公益林结余资金合计70000万元。
A6: 陈贵镇 | B6: =E6+H6 -> 382633.94 | C6: 17302.49 | D6: 16 | E6: 276839.84 | F6: 7052.94 | G6: 15 | H6: 105794.1
A7: 大箕铺镇 | B7: 523953.37 | C7: 11755.57 | D7: 16 | E7: 188089.12 | F7: 22390.95 | G7: 15 | H7: 335864.25
A8: 东风农场 | B8: 871.68 | C8: 54.48 | D8: 16 | E8: 871.68
A9: 还地桥镇 | B9: 69195.36 | C9: 4324.71 | D9: 16 | E9: 69195.36
A10: 金湖街道办事处 | B10: 711770.21 | C10: 17093.36 | D10: 16 | E10: 273493.76 | F10: 29218.43 | G10: 15 | H10: 438276.45
A11: 金湖街办 （黄坪山村） | B11: 18557.1 | F11: 1237.14 | G11: 15 | H11: 18557.1
A12: 金牛镇 | B12: 156640.17 | C12: 5017.92 | D12: 16 | E12: =C12*D12 -> 80286.72 | F12: 5090.23 | G12: 15 | H12: 76353.45
A13: 金山店镇 | B13: 69425.02 | C13: 25.42 | D13: 16 | E13: 406.72 | F13: 4601.22 | G13: 15 | H13: 69018.3
A14: 灵乡镇 | B14: 929078.84 | C14: 24475.19 | D14: 16 | E14: 391603.04 | F14: 35831.72 | G14: 15 | H14: 537475.8
A15: 刘仁八镇 | B15: 809710.74 | C15: 15330.24 | D15: 16 | E15: 245283.84 | F15: 37628.46 | G15: 15 | H15: 564426.9
A16: 罗桥街道办事处 | B16: 1390.24 | C16: 86.89 | D16: 16 | E16: 1390.24
A17: 茗山乡 | B17: 94636.96 | C17: 5914.81 | D17: 16 | E17: 94636.96
A18: 殷祖镇 | B18: 1003536.02 | C18: 19809.92 | D18: 16 | E18: 316958.72 | F18: 45771.82 | G18: 15 | H18: 686577.3
A19: 金山街道办事处 | B19: 8352.48 | C19: 522.03 | D19: 16 | E19: 8352.48
A20: 汪仁镇 | B20: 178969.19 | C20: 9839.54 | D20: 16 | E20: =C20*D20 -> 157432.64 | F20: 1435.77 | G20: 15 | H20: =F20*G20 -> 21536.55
A21: 国有林场管理站 （黄坪山林场） | B21: 53795.97 | C21: 1002.26 | E21: 15876.87 | F21: 2527.94 | G21: 15 | H21: 37919.1
A22: 国有林场管理站 （云台山林场） | B22: 47151.45 | F22: 3143.43 | G22: 15 | H22: 47151.45
A23: 合计 | B23: 5110000 | C23: =SUM(C5:C22) -> 135592.44 | E23: =SUM(E5:E22) -> 2169319.75 | F23: =SUM(F5:F22) -> 196045.35 | H23: =SUM(H5:H22) -> 2940680.25
A24: 审核人： 分管负责人签字： 单位负责人签字：

Sheet 公益林（国家级、省级）
A1: 大冶市2025年度国家级、省级生态公益林补偿资金兑现明细表
I2: 单位：亩、元
A3: 乡镇 | B3: 村 | C3: 图编号 | D3: 小地名 | E3: 公益林 级别 | F3: 林权 权利人 | G3: 面积 | H3: 兑现 标准 | I3: 兑现 金额 | J3: 权利人 账户 | K3: 备注 | L3: 权属
A4: 国有林场管理站 | B4: 黄坪山林场 | C4: 5505 | D4: 后巷 | E4: 省级 | F4: 国有林场 | G4: 2.66 | H4: 15 | I4: =ROUND(G4*H4,2) -> 39.9 | J4: 公户 | L4: 国有
A5: 国有林场管理站 | B5: 黄坪山林场 | C5: 5639 | D5: 后巷 | E5: 省级 | F5: 国有林场 | G5: 1.02 | H5: 15 | I5: =ROUND(G5*H5,2) -> 15.3 | J5: 公户 | L5: 国有
A6: 国有林场管理站 | B6: 黄坪山林场 | C6: 5583 | D6: 后巷 | E6: 省级 | F6: 国有林场 | G6: 3.49 | H6: 15 | I6: 52.35 | J6: 公户 | L6: 国有
A7: 国有林场管理站 | B7: 黄坪山林场 | C7: 5532 | D7: 后巷 | E7: 省级 | F7: 国有林场 | G7: 6.55 | H7: 15 | I7: =ROUND(G7*H7,2) -> 98.25 | J7: 公户 | L7: 国有
A8: 国有林场管理站 | B8: 黄坪山林场 | C8: 5533 | D8: 后巷 | E8: 省级 | F8: 国有林场 | G8: 1.44 | H8: 15 | I8: 21.6 | J8: 公户 | L8: 国有
A9: 国有林场管理站 | B9: 黄坪山林场 | C9: 5646 | D9: 后巷 | E9: 省级 | F9: 国有林场 | G9: 22.73 | H9: 15 | I9: 340.95 | J9: 公户 | L9: 国有
A10: 国有林场管理站 | B10: 黄坪山林场 | C10: 5624 | D10: 后巷 | E10: 省级 | F10: 国有林场 | G10: 20.51 | H10: 15 | I10: 307.65 | J10: 公户 | L10: 国有
A11: 国有林场管理站 | B11: 黄坪山林场 | C11: 5506 | D11: 牛尾巴 | E11: 省级 | F11: 国有林场 | G11: 4.20 | H11: 15 | I11: 63 | J11: 公户 | L11: 国有
A12: 国有林场管理站 | B12: 黄坪山林场 | C12: 5507 | D12: 牛尾巴 | E12: 省级 | F12: 国有林场 | G12: 17.18 | H12: 15 | I12: 257.7 | J12: 公户 | L12: 国有
A13: 国有林场管理站 | B13: 黄坪山林场 | C13: 5508 | D13: 牛尾巴 | E13: 省级 | F13: 国有林场 | G13: 9.23 | H13: 15 | I13: 138.45 | J13: 公户 | L13: 国有
A14: 国有林场管理站 | B14: 黄坪山林场 | C14: 5509 | D14: 牛尾巴 | E14: 省级 | F14: 国有林场 | G14: 2.22 | H14: 15 | I14: 33.3 | J14: 公户 | L14: 国有
A15: 国有林场管理站 | B15: 黄坪山林场 | C15: 5510 | D15: 牛尾巴 | E15: 省级 | F15: 国有林场 | G15: 10.83 | H15: 15 | I15: 162.45 | J15: 公户 | L15: 国有
A16: 国有林场管理站 | B16: 黄坪山林场 | C16: 5511 | D16: 牛尾巴 | E16: 省级 | F16: 国有林场 | G16: 59.21 | H16: 15 | I16: 888.15 | J16: 公户 | L16: 国有
A17: 国有林场管理站 | B17: 黄坪山林场 | C17: 5512 | D17: 牛尾巴 | E17: 省级 | F17: 国有林场 | G17: 23.85 | H17: 15 | I17: 357.75 | J17: 公户 | L17: 国有
A18: 国有林场管理站 | B18: 黄坪山林场 | C18: 5513 | D18: 牛尾巴 | E18: 省级 | F18: 国有林场 | G18: 114.70 | H18: 15 | I18: 1720.5 | J18: 公户 | L18: 国有
A19: 国有林场管理站 | B19: 黄坪山林场 | C19: 5514 | D19: 牛尾巴 | E19: 省级 | F19: 国有林场 | G19: 32.37 | H19: 15 | I19: 485.55 | J19: 公户 | L19: 国有
A20: 国有林场管理站 | B20: 黄坪山林场 | C20: 5515 | D20: 牛尾巴 | E20: 省级 | F20: 国有林场 | G20: 69.43 | H20: 15 | I20: 1041.45 | J20: 公户 | L20: 国有
A21: 国有林场管理站 | B21: 黄坪山林场 | C21: 5516 | D21: 牛尾巴 | E21: 省级 | F21: 国有林场 | G21: 58.47 | H21: 15 | I21: 877.05 | J21: 公户 | L21: 国有
A22: 国有林场管理站 | B22: 黄坪山林场 | C22: 5517 | D22: 牛尾巴 | E22: 省级 | F22: 国有林场 | G22: 21.60 | H22: 15 | I22: 324 | J22: 公户 | L22: 国有
A23: 国有林场管理站 | B23: 黄坪山林场 | C23: 5518 | D23: 牛尾巴 | E23: 省级 | F23: 国有林场 | G23: 6.99 | H23: 15 | I23: 104.85 | J23: 公户 | L23: 国有
A24: 国有林场管理站 | B24: 黄坪山林场 | C24: 5519 | D24: 牛尾巴 | E24: 省级 | F24: 国有林场 | G24: 11.14 | H24: 15 | I24: 167.1 | J24: 公户 | L24: 国有
A25: 国有林场管理站 | B25: 黄坪山林场 | C25: 5520 | D25: 牛尾巴 | E25: 省级 | F25: 国有林场 | G25: 26.93 | H25: 15 | I25: 403.95 | J25: 公户 | L25: 国有
A26: 国有林场管理站 | B26: 黄坪山林场 | C26: 5521 | D26: 牛尾巴 | E26: 省级 | F26: 国有林场 | G26: 6.91 | H26: 15 | I26: 103.65 | J26: 公户 | L26: 国有
A27: 国有林场管理站 | B27: 黄坪山林场 | C27: 5522 | D27: 牛尾巴 | E27: 省级 | F27: 国有林场 | G27: 45.77 | H27: 15 | I27: 686.55 | J27: 公户 | L27: 国有
A28: 国有林场管理站 | B28: 黄坪山林场 | C28: 5523 | D28: 牛尾巴 | E28: 省级 | F28: 国有林场 | G28: 43.19 | H28: 15 | I28: 647.85 | J28: 公户 | L28: 国有
A29: 国有林场管理站 | B29: 黄坪山林场 | C29: 5524 | D29: 牛尾巴 | E29: 省级 | F29: 国有林场 | G29: 47.13 | H29: 15 | I29: 706.95 | J29: 公户 | L29: 国有
A30: 国有林场管理站 | B30: 黄坪山林场 | C30: 5525 | D30: 牛尾巴 | E30: 省级 | F30: 国有林场 | G30: 40.47 | H30: 15 | I30: 607.05 | J30: 公户 | L30: 国有
A31: 国有林场管理站 | B31: 黄坪山林场 | C31: 5526 | D31: 牛尾巴 | E31: 省级 | F31: 国有林场 | G31: 1.16 | H31: 15 | I31: 17.4 | J31: 公户 | L31: 国有
A32: 国有林场管理站 | B32: 黄坪山林场 | C32: 5527 | D32: 牛尾巴 | E32: 省级 | F32: 国有林场 | G32: 0.62 | H32: 15 | I32: 9.3 | J32: 公户 | L32: 国有
A33: 国有林场管理站 | B33: 黄坪山林场 | C33: 5528 | D33: 牛尾巴 | E33: 省级 | F33: 国有林场 | G33: 8.69 | H33: 15 | I33: 130.35 | J33: 公户 | L33: 国有
A34: 国有林场管理站 | B34: 黄坪山林场 | C34: 5529 | D34: 牛尾巴 | E34: 省级 | F34: 国有林场 | G34: 17.43 | H34: 15 | I34: 261.45 | J34: 公户 | L34: 国有
A35: 国有林场管理站 | B35: 黄坪山林场 | C35: 5530 | D35: 牛尾巴 | E35: 省级 | F35: 国有林场 | G35: 66.23 | H35: 15 | I35: 993.45 | J35: 公户 | L35: 国有
A36: 国有林场管理站 | B36: 黄坪山林场 | C36: 5531 | D36: 牛尾巴 | E36: 省级 | F36: 国有林场 | G36: 29.76 | H36: 15 | I36: 446.4 | J36: 公户 | L36: 国有
A37: 国有林场管理站 | B37: 黄坪山林场 | C37: 5534 | D37: 牛尾巴 | E37: 省级 | F37: 国有林场 | G37: 10.40 | H37: 15 | I37: 156 | J37: 公户 | L37: 国有
A38: 国有林场管理站 | B38: 黄坪山林场 | C38: 5535 | D38: 牛尾巴 | E38: 省级 | F38: 国有林场 | G38: 13.08 | H38: 15 | I38: 196.2 | J38: 公户 | L38: 国有
A39: 国有林场管理站 | B39: 黄坪山林场 | C39: 5536 | D39: 牛尾巴 | E39: 省级 | F39: 国有林场 | G39: 13.79 | H39: 15 | I39: 206.85 | J39: 公户 | L39: 国有
A40: 国有林场管理站 | B40: 黄坪山林场 | C40: 5537 | D40: 牛尾巴 | E40: 省级 | F40: 国有林场 | G40: 64.49 | H40: 15 | I40: 967.35 | J40: 公户 | L40: 国有
A41: 国有林场管理站 | B41: 黄坪山林场 | C41: 5538 | D41: 牛尾巴 | E41: 省级 | F41: 国有林场 | G41: 3.97 | H41: 15 | I41: 59.55 | J41: 公户 | L41: 国有
A42: 国有林场管理站 | B42: 黄坪山林场 | C42: 5539 | D42: 牛尾巴 | E42: 省级 | F42: 国有林场 | G42: 0.97 | H42: 15 | I42: 14.55 | J42: 公户 | L42: 国有
A43: 国有林场管理站 | B43: 黄坪山林场 | C43: 5540 | D43: 牛尾巴 | E43: 省级 | F43: 国有林场 | G43: 1.33 | H43: 15 | I43: 19.95 | J43: 公户 | L43: 国有
A44: 国有林场管理站 | B44: 黄坪山林场 | C44: 5541 | D44: 牛尾巴 | E44: 省级 | F44: 国有林场 | G44: 0.66 | H44: 15 | I44: 9.9 | J44: 公户 | L44: 国有
A45: 国有林场管理站 | B45: 黄坪山林场 | C45: 5542 | D45: 牛尾巴 | E45: 省级 | F45: 国有林场 | G45: 1.72 | H45: 15 | I45: 25.8 | J45: 公户 | L45: 国有
A46: 国有林场管理站 | B46: 黄坪山林场 | C46: 5543 | D46: 牛尾巴 | E46: 省级 | F46: 国有林场 | G46: 1.89 | H46: 15 | I46: 28.35 | J46: 公户 | L46: 国有
A47: 国有林场管理站 | B47: 黄坪山林场 | C47: 5544 | D47: 牛尾巴 | E47: 省级 | F47: 国有林场 | G47: 0.67 | H47: 15 | I47: 10.05 | J47: 公户 | L47: 国有
A48: 国有林场管理站 | B48: 黄坪山林场 | C48: 5545 | D48: 牛尾巴 | E48: 省级 | F48: 国有林场 | G48: 1.98 | H48: 15 | I48: 29.7 | J48: 公户 | L48: 国有
A49: 国有林场管理站 | B49: 黄坪山林场 | C49: 5546 | D49: 牛尾巴 | E49: 省级 | F49: 国有林场 | G49: 1.34 | H49: 15 | I49: 20.1 | J49: 公户 | L49: 国有
A50: 国有林场管理站 | B50: 黄坪山林场 | C50: 5547 | D50: 牛尾巴 | E50: 省级 | F50: 国有林场 | G50: 1.01 | H50: 15 | I50: 15.15 | J50: 公户 | L50: 国有
A51: 国有林场管理站 | B51: 黄坪山林场 | C51: 5548 | D51: 牛尾巴 | E51: 省级 | F51: 国有林场 | G51: 21.03 | H51: 15 | I51: 315.45 | J51: 公户 | L51: 国有
A52: 国有林场管理站 | B52: 黄坪山林场 | C52: 5549 | D52: 牛尾巴 | E52: 省级 | F52: 国有林场 | G52: 5.93 | H52: 15 | I52: 88.95 | J52: 公户 | L52: 国有
A53: 国有林场管理站 | B53: 黄坪山林场 | C53: 5550 | D53: 牛尾巴 | E53: 省级 | F53: 国有林场 | G53: 0.72 | H53: 15 | I53: 10.8 | J53: 公户 | L53: 国有
A54: 国有林场管理站 | B54: 黄坪山林场 | C54: 5563 | D54: 牛尾巴 | E54: 省级 | F54: 国有林场 | G54: 51.84 | H54: 15 | I54: 777.6 | J54: 公户 | L54: 国有
A55: 国有林场管理站 | B55: 黄坪山林场 | C55: 5564 | D55: 牛尾巴 | E55: 省级 | F55: 国有林场 | G55: 10.50 | H55: 15 | I55: 157.5 | J55: 公户 | L55: 国有
A56: 国有林场管理站 | B56: 黄坪山林场 | C56: 5565 | D56: 牛尾巴 | E56: 省级 | F56: 国有林场 | G56: 6.13 | H56: 15 | I56: 91.95 | J56: 公户 | L56: 国有
A57: 国有林场管理站 | B57: 黄坪山林场 | C57: 5566 | D57: 牛尾巴 | E57: 省级 | F57: 国有林场 | G57: 4.92 | H57: 15 | I57: 73.8 | J57: 公户 | L57: 国有
A58: 国有林场管理站 | B58: 黄坪山林场 | C58: 5567 | D58: 牛尾巴 | E58: 省级 | F58: 国有林场 | G58: 1.84 | H58: 15 | I58: 27.6 | J58: 公户 | L58: 国有
A59: 国有林场管理站 | B59: 黄坪山林场 | C59: 5568 | D59: 牛尾巴 | E59: 省级 | F59: 国有林场 | G59: 5.39 | H59: 15 | I59: 80.85 | J59: 公户 | L59: 国有
A60: 国有林场管理站 | B60: 黄坪山林场 | C60: 5569 | D60: 牛尾巴 | E60: 省级 | F60: 国有林场 | G60: 56.64 | H60: 15 | I60: 849.6 | J60: 公户 | L60: 国有
A61: 国有林场管理站 | B61: 黄坪山林场 | C61: 5572 | D61: 牛尾巴 | E61: 省级 | F61: 国有林场 | G61: 0.97 | H61: 15 | I61: 14.55 | J61: 公户 | L61: 国有
A62: 国有林场管理站 | B62: 黄坪山林场 | C62: 5574 | D62: 牛尾巴 | E62: 省级 | F62: 国有林场 | G62: 3.73 | H62: 15 | I62: 55.95 | J62: 公户 | L62: 国有
A63: 国有林场管理站 | B63: 黄坪山林场 | C63: 5584 | D63: 水竹林 | E63: 省级 | F63: 国有林场 | G63: 7.77 | H63: 15 | I63: 116.55 | J63: 公户 | L63: 国有
A64: 国有林场管理站 | B64: 黄坪山林场 | C64: 5585 | D64: 水竹林 | E64: 省级 | F64: 国有林场 | G64: 60.49 | H64: 15 | I64: 907.35 | J64: 公户 | L64: 国有
A65: 国有林场管理站 | B65: 黄坪山林场 | C65: 5586 | D65: 水竹林 | E65: 省级 | F65: 国有林场 | G65: 62.94 | H65: 15 | I65: 944.1 | J65: 公户 | L65: 国有
A66: 国有林场管理站 | B66: 黄坪山林场 | C66: 5587 | D66: 水竹林 | E66: 省级 | F66: 国有林场 | G66: 90.64 | H66: 15 | I66: 1359.6 | J66: 公户 | L66: 国有
A67: 国有林场管理站 | B67: 黄坪山林场 | C67: 5588 | D67: 水竹林 | E67: 省级 | F67: 国有林场 | G67: 2.49 | H67: 15 | I67: 37.35 | J67: 公户 | L67: 国有
A68: 国有林场管理站 | B68: 黄坪山林场 | C68: 5589 | D68: 水竹林 | E68: 省级 | F68: 国有林场 | G68: 3.36 | H68: 15 | I68: 50.4 | J68: 公户 | L68: 国有
A69: 国有林场管理站 | B69: 黄坪山林场 | C69: 5590 | D69: 水竹林 | E69: 省级 | F69: 国有林场 | G69: 1.41 | H69: 15 | I69: 21.15 | J69: 公户 | L69: 国有
A70: 国有林场管理站 | B70: 黄坪山林场 | C70: 5591 | D70: 水竹林 | E70: 省级 | F70: 国有林场 | G70: 5.23 | H70: 15 | I70: 78.45 | J70: 公户 | L70: 国有
A71: 国有林场管理站 | B71: 黄坪山林场 | C71: 5592 | D71: 水竹林 | E71: 省级 | F71: 国有林场 | G71: 10.23 | H71: 15 | I71: =ROUND(G71*H71,2) -> 153.45 | J71: 公户 | L71: 国有
A72: 国有林场管理站 | B72: 黄坪山林场 | C72: 5594 | D72: 水竹林 | E72: 省级 | F72: 国有林场 | G72: 83.36 | H72: 15 | I72: 1250.4 | J72: 公户 | L72: 国有
A73: 国有林场管理站 | B73: 黄坪山林场 | C73: 5595 | D73: 水竹林 | E73: 省级 | F73: 国有林场 | G73: 0.64 | H73: 15 | I73: 9.6 | J73: 公户 | L73: 国有
A74: 国有林场管理站 | B74: 黄坪山林场 | C74: 5596 | D74: 水竹林 | E74: 省级 | F74: 国有林场 | G74: 27.85 | H74: 15 | I74: 417.75 | J74: 公户 | L74: 国有
A75: 国有林场管理站 | B75: 黄坪山林场 | C75: 5597 | D75: 水竹林 | E75: 省级 | F75: 国有林场 | G75: 9.22 | H75: 15 | I75: 138.3 | J75: 公户 | L75: 国有
A76: 国有林场管理站 | B76: 黄坪山林场 | C76: 5599 | D76: 水竹林 | E76: 省级 | F76: 国有林场 | G76: 0.87 | H76: 15 | I76: 13.05 | J76: 公户 | L76: 国有
A77: 国有林场管理站 | B77: 黄坪山林场 | C77: 5600 | D77: 水竹林 | E77: 省级 | F77: 国有林场 | G77: 4.88 | H77: 15 | I77: 73.2 | J77: 公户 | L77: 国有
A78: 国有林场管理站 | B78: 黄坪山林场 | C78: 5601 | D78: 水竹林 | E78: 省级 | F78: 国有林场 | G78: 9.27 | H78: 15 | I78: 139.05 | J78: 公户 | L78: 国有
A79: 国有林场管理站 | B79: 黄坪山林场 | C79: 5602 | D79: 水竹林 | E79: 省级 | F79: 国有林场 | G79: 9.15 | H79: 15 | I79: 137.25 | J79: 公户 | L79: 国有
A80: 国有林场管理站 | B80: 黄坪山林场 | C80: 5605 | D80: 水竹林 | E80: 省级 | F80: 国有林场 | G80: 3.32 | H80: 15 | I80: 49.8 | J80: 公户 | L80: 国有
A81: 国有林场管理站 | B81: 黄坪山林场 | C81: 5610 | D81: 水竹林 | E81: 省级 | F81: 国有林场 | G81: 0.91 | H81: 15 | I81: 13.65 | J81: 公户 | L81: 国有
A82: 国有林场管理站 | B82: 黄坪山林场 | C82: 5618 | D82: 水竹林 | E82: 省级 | F82: 国有林场 | G82: 30.61 | H82: 15 | I82: 459.15 | J82: 公户 | L82: 国有
A83: 国有林场管理站 | B83: 黄坪山林场 | C83: 5619 | D83: 水竹林 | E83: 省级 | F83: 国有林场 | G83: 7.20 | H83: 15 | I83: 108 | J83: 公户 | L83: 国有
A84: 国有林场管理站 | B84: 黄坪山林场 | C84: 5620 | D84: 水竹林 | E84: 省级 | F84: 国有林场 | G84: 26.54 | H84: 15 | I84: 398.1 | J84: 公户 | L84: 国有
A85: 国有林场管理站 | B85: 黄坪山林场 | C85: 5621 | D85: 细潘祥 | E85: 省级 | F85: 国有林场 | G85: 53.78 | H85: 15 | I85: 806.7 | J85: 公户 | L85: 国有
A86: 国有林场管理站 | B86: 黄坪山林场 | C86: 5622 | D86: 细潘祥 | E86: 省级 | F86: 国有林场 | G86: 48.29 | H86: 15 | I86: 724.35 | J86: 公户 | L86: 国有
A87: 国有林场管理站 | B87: 黄坪山林场 | C87: 5623 | D87: 细潘祥 | E87: 省级 | F87: 国有林场 | G87: 60.84 | H87: 15 | I87: 912.6 | J87: 公户 | L87: 国有
A88: 国有林场管理站 | B88: 黄坪山林场 | C88: 5625 | D88: 细潘祥 | E88: 省级 | F88: 国有林场 | G88: 12.95 | H88: 15 | I88: 194.25 | J88: 公户 | L88: 国有
A89: 国有林场管理站 | B89: 黄坪山林场 | C89: 5626 | D89: 细潘祥 | E89: 省级 | F89: 国有林场 | G89: 5.74 | H89: 15 | I89: 86.1 | J89: 公户 | L89: 国有
A90: 国有林场管理站 | B90: 黄坪山林场 | C90: 5629 | D90: 细潘祥 | E90: 省级 | F90: 国有林场 | G90: 39.57 | H90: 15 | I90: 593.55 | J90: 公户 | L90: 国有
A91: 国有林场管理站 | B91: 黄坪山林场 | C91: 5630 | D91: 细潘祥 | E91: 省级 | F91: 国有林场 | G91: 3.93 | H91: 15 | I91: 58.95 | J91: 公户 | L91: 国有
A92: 国有林场管理站 | B92: 黄坪山林场 | C92: 5631 | D92: 细潘祥 | E92: 省级 | F92: 国有林场 | G92: 2.77 | H92: 15 | I92: 41.55 | J92: 公户 | L92: 国有
A93: 国有林场管理站 | B93: 黄坪山林场 | C93: 5632 | D93: 细潘祥 | E93: 省级 | F93: 国有林场 | G93: 53.61 | H93: 15 | I93: 804.15 | J93: 公户 | L93: 国有
A94: 国有林场管理站 | B94: 黄坪山林场 | C94: 5633 | D94: 细潘祥 | E94: 省级 | F94: 国有林场 | G94: 42.35 | H94: 15 | I94: 635.25 | J94: 公户 | L94: 国有
A95: 国有林场管理站 | B95: 黄坪山林场 | C95: 5634 | D95: 细潘祥 | E95: 省级 | F95: 国有林场 | G95: 3.13 | H95: 15 | I95: 46.95 | J95: 公户 | L95: 国有
A96: 国有林场管理站 | B96: 黄坪山林场 | C96: 5635 | D96: 细潘祥 | E96: 省级 | F96: 国有林场 | G96: 3.17 | H96: 15 | I96: 47.55 | J96: 公户 | L96: 国有
A97: 国有林场管理站 | B97: 黄坪山林场 | C97: 5636 | D97: 细潘祥 | E97: 省级 | F97: 国有林场 | G97: 14.84 | H97: 15 | I97: 222.6 | J97: 公户 | L97: 国有
A98: 国有林场管理站 | B98: 黄坪山林场 | C98: 5637 | D98: 细潘祥 | E98: 省级 | F98: 国有林场 | G98: 1.39 | H98: 15 | I98: 20.85 | J98: 公户 | L98: 国有
A99: 国有林场管理站 | B99: 黄坪山林场 | C99: 5640 | D99: 细潘祥 | E99: 省级 | F99: 国有林场 | G99: 117.17 | H99: 15 | I99: 1757.55 | J99: 公户 | L99: 国有
A100: 国有林场管理站 | B100: 黄坪山林场 | C100: 5641 | D100: 细潘祥 | E100: 省级 | F100: 国有林场 | G100: 2.06 | H100: 15 | I100: 30.9 | J100: 公户 | L100: 国有
A101: 国有林场管理站 | B101: 黄坪山林场 | C101: 5642 | D101: 细潘祥 | E101: 省级 | F101: 国有林场 | G101: 108.98 | H101: 15 | I101: 1634.7 | J101: 公户 | L101: 国有
A102: 国有林场管理站 | B102: 黄坪山林场 | C102: 5643 | D102: 细潘祥 | E102: 省级 | F102: 国有林场 | G102: 38.63 | H102: 15 | I102: 579.45 | J102: 公户 | L102: 国有
A103: 国有林场管理站 | B103: 黄坪山林场 | C103: 5644 | D103: 细潘祥 | E103: 省级 | F103: 国有林场 | G103: 28.94 | H103: 15 | I103: 434.1 | J103: 公户 | L103: 国有
A104: 国有林场管理站 | B104: 黄坪山林场 | C104: 5645 | D104: 细潘祥 | E104: 省级 | F104: 国有林场 | G104: 41.97 | H104: 15 | I104: 629.55 | J104: 公户 | L104: 国有
A105: 国有林场管理站 | B105: 黄坪山林场 | C105: 5647 | D105: 细潘祥 | E105: 省级 | F105: 国有林场 | G105: 1.82 | H105: 15 | I105: 27.3 | J105: 公户 | L105: 国有
A106: 国有林场管理站 | B106: 黄坪山林场 | C106: 5649 | D106: 细潘祥 | E106: 省级 | F106: 国有林场 | G106: 31.14 | H106: 15 | I106: 467.1 | J106: 公户 | L106: 国有
A107: 国有林场管理站 | B107: 黄坪山林场 | C107: 5650 | D107: 细潘祥 | E107: 省级 | F107: 国有林场 | G107: 22.04 | H107: 15 | I107: 330.6 | J107: 公户 | L107: 国有
A108: 国有林场管理站 | B108: 黄坪山林场 | C108: 5651 | D108: 细潘祥 | E108: 省级 | F108: 国有林场 | G108: 7.99 | H108: 15 | I108: 119.85 | J108: 公户 | L108: 国有
A109: 国有林场管理站 | B109: 黄坪山林场 | C109: 5652 | D109: 细潘祥 | E109: 省级 | F109: 国有林场 | G109: 9.22 | H109: 15 | I109: 138.3 | J109: 公户 | L109: 国有
A110: 国有林场管理站 | B110: 黄坪山林场 | C110: 5653 | D110: 细潘祥 | E110: 省级 | F110: 国有林场 | G110: 5.59 | H110: 15 | I110: 83.85 | J110: 公户 | L110: 国有
A111: 国有林场管理站 | B111: 黄坪山林场 | C111: 5654 | D111: 细潘祥 | E111: 省级 | F111: 国有林场 | G111: 3.66 | H111: 15 | I111: 54.9 | J111: 公户 | L111: 国有
A112: 国有林场管理站 | B112: 黄坪山林场 | C112: 5655 | D112: 细潘祥 | E112: 省级 | F112: 国有林场 | G112: 0.73 | H112: 15 | I112: 10.95 | J112: 公户 | L112: 国有
A113: 国有林场管理站 | B113: 黄坪山林场 | C113: 5656 | D113: 细潘祥 | E113: 省级 | F113: 国有林场 | G113: 1.77 | H113: 15 | I113: 26.55 | J113: 公户 | L113: 国有
A114: 国有林场管理站 | B114: 黄坪山林场 | C114: 5657 | D114: 细潘祥 | E114: 省级 | F114: 国有林场 | G114: 1.88 | H114: 15 | I114: 28.2 | J114: 公户 | L114: 国有
A115: 国有林场管理站 | B115: 黄坪山林场 | C115: 5658 | D115: 细潘祥 | E115: 省级 | F115: 国有林场 | G115: 1.47 | H115: 15 | I115: 22.05 | J115: 公户 | L115: 国有
A116: 国有林场管理站 | B116: 黄坪山林场 | C116: 5659 | D116: 细潘祥 | E116: 省级 | F116: 国有林场 | G116: 0.88 | H116: 15 | I116: 13.2 | J116: 公户 | L116: 国有
A117: 国有林场管理站 | B117: 黄坪山林场 | C117: 5663 | D117: 细潘祥 | E117: 省级 | F117: 国有林场 | G117: 1.43 | H117: 15 | I117: 21.45 | J117: 公户 | L117: 国有
A118: 国有林场管理站 | B118: 黄坪山林场 | C118: 5664 | D118: 细潘祥 | E118: 省级 | F118: 国有林场 | G118: 7.20 | H118: 15 | I118: 108 | J118: 公户 | L118: 国有
A119: 国有林场管理站 | B119: 黄坪山林场 | C119: 5666 | D119: 细潘祥 | E119: 省级 | F119: 国有林场 | G119: 131.00 | H119: 15 | I119: 1965 | J119: 公户 | L119: 国有
A120: 国有林场管理站 | B120: 黄坪山林场 | C120: 5667 | D120: 细潘祥 | E120: 省级 | F120: 国有林场 | G120: 2.18 | H120: 15 | I120: 32.7 | J120: 公户 | L120: 国有
A121: 国有林场管理站 | B121: 黄坪山林场 | C121: 5668 | D121: 细潘祥 | E121: 省级 | F121: 国有林场 | G121: 16.21 | H121: 15 | I121: 243.15 | J121: 公户 | L121: 国有
A122: 国有林场管理站 | B122: 黄坪山林场 | C122: 5669 | D122: 细潘祥 | E122: 省级 | F122: 国有林场 | G122: 0.72 | H122: 15 | I122: 10.8 | J122: 公户 | L122: 国有
A123: 国有林场管理站 | B123: 黄坪山林场 | C123: 5670 | D123: 细潘祥 | E123: 省级 | F123: 国有林场 | G123: 8.49 | H123: 15 | I123: 127.35 | J123: 公户 | L123: 国有
A124: 国有林场管理站 | B124: 黄坪山林场 | C124: 5671 | D124: 细潘祥 | E124: 省级 | F124: 国有林场 | G124: 1.96 | H124: 15 | I124: 29.4 | J124: 公户 | L124: 国有
A125: 国有林场管理站 | B125: 黄坪山林场 | C125: 5672 | D125: 细潘祥 | E125: 省级 | F125: 国有林场 | G125: 1.18 | H125: 15 | I125: 17.7 | J125: 公户 | L125: 国有
A126: 国有林场管理站 | B126: 黄坪山林场 | C126: 5673 | D126: 细潘祥 | E126: 省级 | F126: 国有林场 | G126: 2.57 | H126: 15 | I126: 38.55 | J126: 公户 | L126: 国有
A127: 国有林场管理站 | B127: 黄坪山林场 | C127: 5674 | D127: 细潘祥 | E127: 省级 | F127: 国有林场 | G127: 2.33 | H127: 15 | I127: 34.95 | J127: 公户 | L127: 国有
A128: 国有林场管理站 | B128: 黄坪山林场 | C128: 5680 | D128: 细潘祥 | E128: 省级 | F128: 国有林场 | G128: 0.94 | H128: 15 | I128: 14.1 | J128: 公户 | L128: 国有
A129: 国有林场管理站 | B129: 云台山林场 | C129: 4772 | D129: 八斗五 | E129: 省级 | F129: 国有林场 | G129: 4.86 | H129: 15 | I129: 72.9 | J129: 公户 | L129: 国有
A130: 国有林场管理站 | B130: 云台山林场 | C130: 4774 | D130: 八斗五 | E130: 省级 | F130: 国有林场 | G130: 4.80 | H130: 15 | I130: 72 | J130: 公户 | L130: 国有
A131: 国有林场管理站 | B131: 云台山林场 | C131: 4775 | D131: 八斗五 | E131: 省级 | F131: 国有林场 | G131: 1.20 | H131: 15 | I131: 18 | J131: 公户 | L131: 国有
A132: 国有林场管理站 | B132: 云台山林场 | C132: 4776 | D132: 八斗五 | E132: 省级 | F132: 国有林场 | G132: 2.51 | H132: 15 | I132: 37.65 | J132: 公户 | L132: 国有
A133: 国有林场管理站 | B133: 云台山林场 | C133: 4778 | D133: 八斗五 | E133: 省级 | F133: 国有林场 | G133: 1.03 | H133: 15 | I133: 15.45 | J133: 公户 | L133: 国有
A134: 国有林场管理站 | B134: 云台山林场 | C134: 4779 | D134: 八斗五 | E134: 省级 | F134: 国有林场 | G134: 2.19 | H134: 15 | I134: 32.85 | J134: 公户 | L134: 国有
A135: 国有林场管理站 | B135: 云台山林场 | C135: 4780 | D135: 八斗五 | E135: 省级 | F135: 国有林场 | G135: 5.53 | H135: 15 | I135: =ROUND(G135*H135,2) -> 82.95 | J135: 公户 | L135: 国有
A136: 国有林场管理站 | B136: 云台山林场 | C136: 4781 | D136: 八斗五 | E136: 省级 | F136: 国有林场 | G136: 5.25 | H136: 15 | I136: 78.75 | J136: 公户 | L136: 国有
A137: 国有林场管理站 | B137: 云台山林场 | C137: 4787 | D137: 八斗五 | E137: 省级 | F137: 国有林场 | G137: 8.77 | H137: 15 | I137: 131.55 | J137: 公户 | L137: 国有
A138: 国有林场管理站 | B138: 云台山林场 | C138: 4788 | D138: 八斗五 | E138: 省级 | F138: 国有林场 | G138: 2.07 | H138: 15 | I138: 31.05 | J138: 公户 | L138: 国有
A139: 国有林场管理站 | B139: 云台山林场 | C139: 4789 | D139: 八斗五 | E139: 省级 | F139: 国有林场 | G139: 5.87 | H139: 15 | I139: 88.05 | J139: 公户 | L139: 国有
A140: 国有林场管理站 | B140: 云台山林场 | C140: 4791 | D140: 八斗五 | E140: 省级 | F140: 国有林场 | G140: 2.91 | H140: 15 | I140: 43.65 | J140: 公户 | L140: 国有
A141: 国有林场管理站 | B141: 云台山林场 | C141: 4792 | D141: 八斗五 | E141: 省级 | F141: 国有林场 | G141: 16.68 | H141: 15 | I141: 250.2 | J141: 公户 | L141: 国有
A142: 国有林场管理站 | B142: 云台山林场 | C142: 4793 | D142: 八斗五 | E142: 省级 | F142: 国有林场 | G142: 24.70 | H142: 15 | I142: 370.5 | J142: 公户 | L142: 国有
A143: 国有林场管理站 | B143: 云台山林场 | C143: 4798 | D143: 八斗五 | E143: 省级 | F143: 国有林场 | G143: 9.94 | H143: 15 | I143: 149.1 | J143: 公户 | L143: 国有
A144: 国有林场管理站 | B144: 云台山林场 | C144: 4799 | D144: 八斗五 | E144: 省级 | F144: 国有林场 | G144: 28.59 | H144: 15 | I144: 428.85 | J144: 公户 | L144: 国有
A145: 国有林场管理站 | B145: 云台山林场 | C145: 4800 | D145: 八斗五 | E145: 省级 | F145: 国有林场 | G145: 0.60 | H145: 15 | I145: 9 | J145: 公户 | L145: 国有
A146: 国有林场管理站 | B146: 云台山林场 | C146: 4801 | D146: 八斗五 | E146: 省级 | F146: 国有林场 | G146: 78.11 | H146: 15 | I146: 1171.65 | J146: 公户 | L146: 国有
A147: 国有林场管理站 | B147: 云台山林场 | C147: 4802 | D147: 八斗五 | E147: 省级 | F147: 国有林场 | G147: 57.25 | H147: 15 | I147: 858.75 | J147: 公户 | L147: 国有
A148: 国有林场管理站 | B148: 云台山林场 | C148: 4804 | D148: 八斗五 | E148: 省级 | F148: 国有林场 | G148: 26.87 | H148: 15 | I148: 403.05 | J148: 公户 | L148: 国有
A149: 国有林场管理站 | B149: 云台山林场 | C149: 4810 | D149: 八斗五 | E149: 省级 | F149: 国有林场 | G149: 1.35 | H149: 15 | I149: 20.25 | J149: 公户 | L149: 国有
A150: 国有林场管理站 | B150: 云台山林场 | C150: 4811 | D150: 八斗五 | E150: 省级 | F150: 国有林场 | G150: 2.35 | H150: 15 | I150: 35.25 | J150: 公户 | L150: 国有
A151: 国有林场管理站 | B151: 云台山林场 | C151: 4812 | D151: 八斗五 | E151: 省级 | F151: 国有林场 | G151: 3.01 | H151: 15 | I151: 45.15 | J151: 公户 | L151: 国有
A152: 国有林场管理站 | B152: 云台山林场 | C152: 4813 | D152: 八斗五 | E152: 省级 | F152: 国有林场 | G152: 40.82 | H152: 15 | I152: 612.3 | J152: 公户 | L152: 国有
A153: 国有林场管理站 | B153: 云台山林场 | C153: 4817 | D153: 八斗五 | E153: 省级 | F153: 国有林场 | G153: 1.84 | H153: 15 | I153: 27.6 | J153: 公户 | L153: 国有
A154: 国有林场管理站 | B154: 云台山林场 | C154: 4818 | D154: 八斗五 | E154: 省级 | F154: 国有林场 | G154: 1.04 | H154: 15 | I154: 15.6 | J154: 公户 | L154: 国有
A155: 国有林场管理站 | B155: 云台山林场 | C155: 4820 | D155: 八斗五 | E155: 省级 | F155: 国有林场 | G155: 0.80 | H155: 15 | I155: 12 | J155: 公户 | L155: 国有
A156: 国有林场管理站 | B156: 云台山林场 | C156: 4821 | D156: 八斗五 | E156: 省级 | F156: 国有林场 | G156: 116.96 | H156: 15 | I156: 1754.4 | J156: 公户 | L156: 国有
A157: 国有林场管理站 | B157: 云台山林场 | C157: 4827 | D157: 八斗五 | E157: 省级 | F157: 国有林场 | G157: 7.89 | H157: 15 | I157: 118.35 | J157: 公户 | L157: 国有
A158: 国有林场管理站 | B158: 云台山林场 | C158: 4831 | D158: 八斗五 | E158: 省级 | F158: 国有林场 | G158: 13.18 | H158: 15 | I158: 197.7 | J158: 公户 | L158: 国有
A159: 国有林场管理站 | B159: 云台山林场 | C159: 4833 | D159: 八斗五 | E159: 省级 | F159: 国有林场 | G159: 12.13 | H159: 15 | I159: 181.95 | J159: 公户 | L159: 国有
A160: 国有林场管理站 | B160: 云台山林场 | C160: 4835 | D160: 八斗五 | E160: 省级 | F160: 国有林场 | G160: 0.89 | H160: 15 | I160: 13.35 | J160: 公户 | L160: 国有
A161: 国有林场管理站 | B161: 云台山林场 | C161: 4836 | D161: 八斗五 | E161: 省级 | F161: 国有林场 | G161: 107.41 | H161: 15 | I161: 1611.15 | J161: 公户 | L161: 国有
A162: 国有林场管理站 | B162: 云台山林场 | C162: 4837 | D162: 八斗五 | E162: 省级 | F162: 国有林场 | G162: 36.57 | H162: 15 | I162: 548.55 | J162: 公户 | L162: 国有
A163: 国有林场管理站 | B163: 云台山林场 | C163: 4838 | D163: 八斗五 | E163: 省级 | F163: 国有林场 | G163: 40.31 | H163: 15 | I163: 604.65 | J163: 公户 | L163: 国有
A164: 国有林场管理站 | B164: 云台山林场 | C164: 4840 | D164: 八斗五 | E164: 省级 | F164: 国有林场 | G164: 9.48 | H164: 15 | I164: 142.2 | J164: 公户 | L164: 国有
A165: 国有林场管理站 | B165: 云台山林场 | C165: 4841 | D165: 八斗五 | E165: 省级 | F165: 国有林场 | G165: 0.67 | H165: 15 | I165: 10.05 | J165: 公户 | L165: 国有
A166: 国有林场管理站 | B166: 云台山林场 | C166: 4842 | D166: 八斗五 | E166: 省级 | F166: 国有林场 | G166: 0.90 | H166: 15 | I166: 13.5 | J166: 公户 | L166: 国有
A167: 国有林场管理站 | B167: 云台山林场 | C167: 4843 | D167: 八斗五 | E167: 省级 | F167: 国有林场 | G167: 1.75 | H167: 15 | I167: 26.25 | J167: 公户 | L167: 国有
A168: 国有林场管理站 | B168: 云台山林场 | C168: 4844 | D168: 八斗五 | E168: 省级 | F168: 国有林场 | G168: 1.15 | H168: 15 | I168: 17.25 | J168: 公户 | L168: 国有
A169: 国有林场管理站 | B169: 云台山林场 | C169: 4848 | D169: 八斗五 | E169: 省级 | F169: 国有林场 | G169: 7.22 | H169: 15 | I169: 108.3 | J169: 公户 | L169: 国有
A170: 国有林场管理站 | B170: 云台山林场 | C170: 4849 | D170: 八斗五 | E170: 省级 | F170: 国有林场 | G170: 0.86 | H170: 15 | I170: 12.9 | J170: 公户 | L170: 国有
A171: 国有林场管理站 | B171: 云台山林场 | C171: 4850 | D171: 八斗五 | E171: 省级 | F171: 国有林场 | G171: 1.41 | H171: 15 | I171: 21.15 | J171: 公户 | L171: 国有
A172: 国有林场管理站 | B172: 云台山林场 | C172: 4851 | D172: 八斗五 | E172: 省级 | F172: 国有林场 | G172: 1.99 | H172: 15 | I172: 29.85 | J172: 公户 | L172: 国有
A173: 国有林场管理站 | B173: 云台山林场 | C173: 4852 | D173: 八斗五 | E173: 省级 | F173: 国有林场 | G173: 1.55 | H173: 15 | I173: 23.25 | J173: 公户 | L173: 国有
A174: 国有林场管理站 | B174: 云台山林场 | C174: 4854 | D174: 八斗五 | E174: 省级 | F174: 国有林场 | G174: 59.28 | H174: 15 | I174: 889.2 | J174: 公户 | L174: 国有
A175: 国有林场管理站 | B175: 云台山林场 | C175: 4855 | D175: 八斗五 | E175: 省级 | F175: 国有林场 | G175: 0.66 | H175: 15 | I175: 9.9 | J175: 公户 | L175: 国有
A176: 国有林场管理站 | B176: 云台山林场 | C176: 4859 | D176: 八斗五 | E176: 省级 | F176: 国有林场 | G176: 4.48 | H176: 15 | I176: 67.2 | J176: 公户 | L176: 国有
A177: 国有林场管理站 | B177: 云台山林场 | C177: 4860 | D177: 八斗五 | E177: 省级 | F177: 国有林场 | G177: 1.73 | H177: 15 | I177: 25.95 | J177: 公户 | L177: 国有
A178: 国有林场管理站 | B178: 云台山林场 | C178: 4861 | D178: 八斗五 | E178: 省级 | F178: 国有林场 | G178: 1.09 | H178: 15 | I178: 16.35 | J178: 公户 | L178: 国有
A179: 国有林场管理站 | B179: 云台山林场 | C179: 4862 | D179: 八斗五 | E179: 省级 | F179: 国有林场 | G179: 6.73 | H179: 15 | I179: 100.95 | J179: 公户 | L179: 国有
A180: 国有林场管理站 | B180: 云台山林场 | C180: 4863 | D180: 八斗五 | E180: 省级 | F180: 国有林场 | G180: 24.52 | H180: 15 | I180: 367.8 | J180: 公户 | L180: 国有
A181: 国有林场管理站 | B181: 云台山林场 | C181: 4601 | D181: 八股林 | E181: 省级 | F181: 国有林场 | G181: 0.91 | H181: 15 | I181: 13.65 | J181: 公户 | L181: 国有
A182: 国有林场管理站 | B182: 云台山林场 | C182: 4602 | D182: 八股林 | E182: 省级 | F182: 国有林场 | G182: 8.79 | H182: 15 | I182: 131.85 | J182: 公户 | L182: 国有
A183: 国有林场管理站 | B183: 云台山林场 | C183: 4608 | D183: 八股林 | E183: 省级 | F183: 国有林场 | G183: 8.43 | H183: 15 | I183: 126.45 | J183: 公户 | L183: 国有
A184: 国有林场管理站 | B184: 云台山林场 | C184: 4612 | D184: 八股林 | E184: 省级 | F184: 国有林场 | G184: 27.32 | H184: 15 | I184: 409.8 | J184: 公户 | L184: 国有
A185: 国有林场管理站 | B185: 云台山林场 | C185: 4613 | D185: 八股林 | E185: 省级 | F185: 国有林场 | G185: 0.66 | H185: 15 | I185: 9.9 | J185: 公户 | L185: 国有
A186: 国有林场管理站 | B186: 云台山林场 | C186: 4614 | D186: 八股林 | E186: 省级 | F186: 国有林场 | G186: 47.82 | H186: 15 | I186: 717.3 | J186: 公户 | L186: 国有
A187: 国有林场管理站 | B187: 云台山林场 | C187: 4615 | D187: 八股林 | E187: 省级 | F187: 国有林场 | G187: 110.40 | H187: 15 | I187: 1656 | J187: 公户 | L187: 国有
A188: 国有林场管理站 | B188: 云台山林场 | C188: 4619 | D188: 八股林 | E188: 省级 | F188: 国有林场 | G188: 78.98 | H188: 15 | I188: 1184.7 | J188: 公户 | L188: 国有
A189: 国有林场管理站 | B189: 云台山林场 | C189: 4620 | D189: 八股林 | E189: 省级 | F189: 国有林场 | G189: 0.64 | H189: 15 | I189: 9.6 | J189: 公户 | L189: 国有
A190: 国有林场管理站 | B190: 云台山林场 | C190: 4629 | D190: 八股林 | E190: 省级 | F190: 国有林场 | G190: 0.76 | H190: 15 | I190: 11.4 | J190: 公户 | L190: 国有
A191: 国有林场管理站 | B191: 云台山林场 | C191: 4632 | D191: 八股林 | E191: 省级 | F191: 国有林场 | G191: 10.85 | H191: 15 | I191: 162.75 | J191: 公户 | L191: 国有
A192: 国有林场管理站 | B192: 云台山林场 | C192: 4635 | D192: 八股林 | E192: 省级 | F192: 国有林场 | G192: 1.48 | H192: 15 | I192: 22.2 | J192: 公户 | L192: 国有
A193: 国有林场管理站 | B193: 云台山林场 | C193: 4636 | D193: 八股林 | E193: 省级 | F193: 国有林场 | G193: 41.11 | H193: 15 | I193: 616.65 | J193: 公户 | L193: 国有
A194: 国有林场管理站 | B194: 云台山林场 | C194: 4638 | D194: 八股林 | E194: 省级 | F194: 国有林场 | G194: 32.57 | H194: 15 | I194: 488.55 | J194: 公户 | L194: 国有
A195: 国有林场管理站 | B195: 云台山林场 | C195: 4641 | D195: 八股林 | E195: 省级 | F195: 国有林场 | G195: 0.70 | H195: 15 | I195: 10.5 | J195: 公户 | L195: 国有
A196: 国有林场管理站 | B196: 云台山林场 | C196: 4642 | D196: 八股林 | E196: 省级 | F196: 国有林场 | G196: 86.35 | H196: 15 | I196: 1295.25 | J196: 公户 | L196: 国有
A197: 国有林场管理站 | B197: 云台山林场 | C197: 4644 | D197: 八股林 | E197: 省级 | F197: 国有林场 | G197: 3.85 | H197: 15 | I197: 57.75 | J197: 公户 | L197: 国有
A198: 国有林场管理站 | B198: 云台山林场 | C198: 4648 | D198: 八股林 | E198: 省级 | F198: 国有林场 | G198: 15.64 | H198: 15 | I198: 234.6 | J198: 公户 | L198: 国有
A199: 国有林场管理站 | B199: 云台山林场 | C199: 4649 | D199: 八股林 | E199: 省级 | F199: 国有林场 | G199: 29.96 | H199: 15 | I199: =ROUND(G199*H199,2) -> 449.4 | J199: 公户 | L199: 国有
A200: 国有林场管理站 | B200: 云台山林场 | C200: 4651 | D200: 八股林 | E200: 省级 | F200: 国有林场 | G200: 5.57 | H200: 15 | I200: 83.55 | J200: 公户 | L200: 国有
... 4300 more rows
